fUSD/lending_fUSD_20250414
["ID","MTS","AMOUNT","RATE_DAILY","PERIOD"]
[357967526,1744627536211,-500.0,0.00019178,2]
[357967527,1744627536235,-952.99,0.00019178,2]
[357967528,1744627536259,-500.0,0.00019178,2]
[357967529,1744627536283,-448.72,0.00019178,2]
[357967530,1744627536307,-500.0,0.00019178,2]
[357967531,1744627536331,-503.81,0.00019178,2]
[357967532,1744627536356,-722.38,0.00019178,2]
[357967533,1744627536379,-500.0,0.00019178,2]
[357967534,1744627536403,-544.28,0.00019178,2]
[357967535,1744627536427,-500.0,0.00019178,2]
[357967536,1744627536450,-500.0,0.00019178,2]
[357967537,1744627536474,-500.0,0.00019178,2]
[357967538,1744627536501,-500.0,0.00019178,2]
[357967539,1744627536529,-500.0,0.00019178,2]
[357967540,1744627536553,-552.64,0.00019178,2]
[357967541,1744627536577,-500.0,0.00019178,2]
[357967542,1744627536602,-500.0,0.00019178,2]
[357967543,1744627536629,-500.0,0.00019178,2]
[357967544,1744627536653,-500.0,0.00019178,2]
[357967545,1744627536677,-500.0,0.00019178,2]
[357967546,1744627536700,-500.0,0.00019178,2]
[357967547,1744627536724,-500.0,0.00019178,2]
[357967548,1744627536752,-421.73685686,0.00019178,2]
[357967549,1744627536778,-500.0,0.00019178,2]
[357967550,1744627536802,-534.47577771,0.00019178,2]
[357967551,1744627536828,-27118.16,0.00019178,2]
[357967552,1744627536853,-536.76,0.00019178,2]
[357967553,1744627536879,-500.0,0.00019178,2]
[357967554,1744627536905,-1402.26,0.00019178,2]
[357967555,1744627536933,-500.0,0.00019178,2]
[357967556,1744627536960,-500.0,0.00019178,2]
[357967557,1744627536988,-500.0,0.00019178,2]
[357967558,1744627537013,-623.60163382,0.00019178,2]
[357967559,1744627537036,-500.0,0.00019178,2]
[357967560,1744627537061,-500.0,0.00019178,2]
[357967561,1744627537084,-500.0,0.00019178,2]
[357967562,1744627537108,-500.0,0.00019178,2]
[357967563,1744627537132,-500.0,0.00019178,2]
[357967564,1744627537158,-550.03,0.00019178,2]
[357967565,1744627537183,-500.0,0.00019178,2]
[357967566,1744627537207,-500.0,0.00019178,2]
[357967567,1744627537233,-509.59,0.00019178,2]
[357967568,1744627537257,-500.0,0.00019178,2]
[357967569,1744627537280,-500.0,0.00019178,2]
[357967570,1744627537304,-500.0,0.00019178,2]
[357967571,1744627537328,-500.0,0.00019178,2]
[357967572,1744627537352,-500.0,0.00019178,2]
[357967573,1744627537378,-375.13,0.00019178,2]
[357967574,1744627537402,-500.0,0.00019178,2]
[357967575,1744627537426,-500.0,0.00019178,2]
[357967576,1744627537449,-500.0,0.00019178,2]
[357967577,1744627537473,-474.5,0.00019178,2]
[357967578,1744627537501,-500.0,0.00019178,2]
[357967579,1744627537725,-500.0,0.00019178,2]
[357967580,1744627537761,-500.0,0.00019178,2]
[357967581,1744627537788,-514.64,0.00019178,2]
[357967582,1744627537812,-500.0,0.00019178,2]
[357967583,1744627537837,-500.0,0.00019178,2]
[357967584,1744627537863,-565.41,0.00019178,2]
[357967585,1744627537889,-500.0,0.00019178,2]
[357967586,1744627537915,-500.0,0.00019178,2]
[357967587,1744627537941,-1207.83,0.00019178,2]
[357967588,1744627537966,-500.0,0.00019178,2]
[357967589,1744627537992,-506.15435221,0.00019178,2]
[357967590,1744627538018,-500.0,0.00019178,2]
[357967591,1744627538044,-500.08103103,0.00019178,2]
[357967592,1744627538069,-430.57,0.00019178,2]
[357967593,1744627538094,-500.0,0.00019178,2]
[357967594,1744627538119,-500.0,0.00019178,2]
[357967595,1744627538145,-502.21546187,0.00019178,2]
[357967596,1744627538169,-500.0,0.00019178,2]
[357967597,1744627538194,-500.0,0.00019178,2]
[357967598,1744627538219,-501.75659727,0.00019178,2]
[357967599,1744627538245,-500.0,0.00019178,2]
[357967600,1744627538270,-579.47,0.00019178,2]
[357967601,1744627538294,-500.0,0.00019178,2]
[357967602,1744627538318,-500.0,0.00019178,2]
[357967603,1744627538342,-500.0,0.00019178,2]
[357967604,1744627538371,-549.6,0.00019178,2]
[357967605,1744627538395,-500.0,0.00019178,2]
[357967606,1744627538419,-500.0,0.00019178,2]
[357967607,1744627538444,-160.53250968,0.00019178,2]
[357967608,1744627538469,-500.0,0.00019178,2]
[357967609,1744627538496,-1060.61,0.00019178,2]
[357967610,1744627538522,-500.0,0.00019178,2]
[357967611,1744627538550,-500.0,0.00019178,2]
[357967612,1744627538575,-500.0,0.00019178,2]
[357967613,1744627538599,-379.70568516,0.00019178,2]
[357967614,1744627538623,-500.0,0.00019178,2]
[357967615,1744627538647,-500.0,0.00019178,2]
[357967616,1744627538673,-500.0,0.00019178,2]
[357967617,1744627538697,-500.0,0.00019178,2]
[357967618,1744627538721,-500.0,0.00019178,2]
[357967619,1744627538748,-500.0,0.00019178,2]
[357967620,1744627538771,-500.0,0.00019178,2]
[357967621,1744627538795,-500.0,0.00019178,2]
[357967622,1744627538820,-500.0,0.00019178,2]
[357967623,1744627538844,-498.16083254,0.00019178,2]
[357967624,1744627538867,-500.0,0.00019178,2]
[357967625,1744627538891,-500.0,0.00019178,2]
[357967626,1744627538916,-500.0,0.00019178,2]
[357967627,1744627538941,-500.0,0.00019178,2]
[357967628,1744627538966,-500.0,0.00019178,2]
[357967629,1744627538997,-500.0,0.00019178,2]
[357967630,1744627539021,-500.0,0.00019178,2]
[357967631,1744627539046,-150.0,0.00019178,2]
[357967632,1744627539072,-500.0,0.00019178,2]
[357967633,1744627539096,-150.0,0.00019178,2]
[357967634,1744627539120,-500.0,0.00019178,2]
[357967635,1744627539144,-500.0,0.00019178,2]
[357967636,1744627539168,-300.90561804,0.00019178,2]
[357967637,1744627539192,-536.21001164,0.00019178,2]
[357967638,1744627539216,-500.0,0.00019178,2]
[357967639,1744627539241,-500.0,0.00019178,2]
[357967640,1744627539265,-150.0,0.00019233,2]
[357967641,1744627539288,-2438.31211478,0.0001924,2]
[357967642,1744627539314,-865.6924844,0.00019261,2]
[357967643,1744627539338,-248.9216775,0.00019288,2]
[357967644,1744627539363,-865.6924844,0.00019352,2]
[357967645,1744627539388,-1224.37893303,0.00019435,2]
[357967646,1744627539419,-865.6924844,0.00019443,2]
[357967647,1744627539449,-500.0,0.00019451,2]
[357967648,1744627539473,-500.0,0.00019452,2]
[357967649,1744627539499,-500.0,0.00019452,2]
[357967650,1744627539524,-500.0,0.00019452,2]
[357967651,1744627539551,-500.0,0.00019452,2]
[357967652,1744627539577,-500.0,0.00019452,2]
[357967653,1744627539601,-500.0,0.00019452,2]
[357967654,1744627539628,-356.58,0.00019452,2]
[357967655,1744627539652,-500.0,0.00019452,2]
[357967656,1744627539677,-544.33546063,0.00019452,2]
[357967657,1744627539703,-288.38,0.00019452,2]
[357967658,1744627539729,-269.99,0.00019452,2]
[357967659,1744627539757,-500.0,0.00019452,2]
[357967660,1744627539782,-500.0,0.00019452,2]
[357967661,1744627539806,-500.0,0.00019452,2]
[357967662,1744627539829,-500.0,0.00019452,2]
[357967663,1744627539854,-500.0,0.00019452,2]
[357967664,1744627539879,-500.0,0.00019452,2]
[357967665,1744627539905,-240.21,0.00019452,2]
[357967666,1744627539929,-500.0,0.00019452,2]
[357967667,1744627539953,-500.0,0.00019452,2]
[357967668,1744627539977,-500.0,0.00019452,2]
[357967669,1744627540003,-500.0,0.00019452,2]
[357967670,1744627540028,-500.0,0.00019452,2]
[357967671,1744627540052,-296.21,0.00019452,2]
[357967672,1744627540077,-500.0,0.00019452,2]
[357967673,1744627540115,-262.29,0.00019452,2]
[357967674,1744627540140,-502.45747464,0.00019452,2]
[357967675,1744627540165,-375.47,0.00019452,2]
[357967676,1744627540191,-500.0,0.00019452,2]
[357967677,1744627540216,-390.97,0.00019452,2]
[357967678,1744627540243,-500.0,0.00019452,2]
[357967679,1744627540269,-500.0,0.00019452,2]
[357967680,1744627540294,-567.17493632,0.00019452,2]
[357967681,1744627540321,-500.0,0.00019452,2]
[357967682,1744627540346,-475.84,0.00019452,2]
[357967683,1744627540370,-500.0,0.00019452,2]
[357967684,1744627540395,-500.0,0.00019452,2]
[357967685,1744627540419,-735.33,0.00019452,2]
[357967686,1744627540444,-500.0,0.00019452,2]
[357967687,1744627540470,-500.0,0.00019452,2]
[357967688,1744627540495,-500.0,0.00019452,2]
[357967689,1744627540521,-500.0,0.00019452,2]
[357967690,1744627540553,-500.0,0.00019452,2]
[357967691,1744627540578,-181.17,0.00019452,2]
[357967692,1744627540603,-983.95,0.00019452,2]
[357967693,1744627540628,-500.0,0.00019452,2]
[357967694,1744627540653,-597.82471758,0.00019452,2]
[357967695,1744627540677,-321.65,0.00019452,2]
[357967696,1744627540703,-500.0,0.00019452,2]
[357967697,1744627540727,-500.0,0.00019452,2]
[357967698,1744627540757,-500.0,0.00019452,2]
[357967699,1744627540782,-527.03,0.00019452,2]
[357967700,1744627540807,-402.76925039,0.00019452,2]
[357967701,1744627540832,-537.81,0.00019452,2]
[357967702,1744627540858,-500.0,0.00019452,2]
[357967703,1744627540883,-500.0,0.00019452,2]
[357967704,1744627540909,-248.28,0.00019452,2]
[357967705,1744627540933,-560.68301307,0.00019452,2]
[357967706,1744627540958,-500.0,0.00019452,2]
[357967707,1744627540984,-293.33,0.00019452,2]
[357967708,1744627541010,-500.0,0.00019452,2]
[357967709,1744627541035,-500.0,0.00019452,2]
[357967710,1744627541061,-317.65113806,0.00019452,2]
[357967711,1744627541085,-249.22,0.00019452,2]
[357967712,1744627541110,-569.16,0.00019452,2]
[357967713,1744627541135,-500.0,0.00019452,2]
[357967714,1744627541163,-554.05,0.00019452,2]
[357967715,1744627541188,-500.0,0.00019452,2]
[357967716,1744627541214,-254.45499636,0.00019452,2]
[357967717,1744627541239,-500.0,0.00019452,2]
[357967718,1744627541263,-500.0,0.00019452,2]
[357967719,1744627541288,-500.0,0.00019452,2]
[357967720,1744627541314,-880.98,0.00019452,2]
[357967721,1744627541338,-952.99,0.00019452,2]
[357967722,1744627541363,-315.06,0.00019452,2]
[357967723,1744627541389,-485.84917166,0.00019452,2]
[357967724,1744627541414,-503.81,0.00019452,2]
[357967725,1744627541441,-722.38,0.00019452,2]
[357967726,1744627541467,-500.0,0.00019452,2]
[357967727,1744627541494,-500.0,0.00019452,2]
[357967728,1744627541521,-500.0,0.00019452,2]
[357967729,1744627541549,-500.0,0.00019452,2]
[357967730,1744627541576,-13356.8363251,0.00019452,2]
[357967731,1744627542154,-321.81841881,0.00019178,2]
[357967732,1744627544560,-183.38,0.00018666,2]
[357967733,1744627549931,-16.62,0.00018666,2]
[357967734,1744627549955,-146.22,0.00019178,2]
[357967735,1744627554031,-31.96158119,0.00019178,2]
[357967736,1744627554056,-130.17841881,0.00019178,2]
[357967737,1744627561284,-187.13314286,0.00018572,2]
[357967738,1744627568169,-1081.75963114,0.00018572,2]
[357967739,1744627595341,-288.87404228,0.0001794,2]
[357967740,1744627700848,-1711.12595772,0.0001794,2]
[357967741,1744627700873,-169.03,0.00018777,2]
[357967742,1744627700896,-250.0,0.00018785,2]
[357967743,1744627700921,-1359.84404228,0.00018785,2]
[357967744,1744627754137,1000.0,0.0001794,2]
[357967745,1744627798690,-505.37,0.00018811,2]
[357967746,1744627798716,-300.0,0.00019077,2]
[357967747,1744627798741,-187.13314286,0.00019078,2]
[357967748,1744627798764,-10007.49685714,0.00019078,2]
[357967761,1744627831932,-300.0,0.00019077,2]
[357967762,1744627831942,-8.84060142,0.00019078,2]
[357967763,1744627831954,-26066.66394144,0.00019078,2]
[357967764,1744627831964,-369.82158119,0.00019178,2]
[357967765,1744627831973,-500.0,0.00019178,2]
[357967766,1744627831985,-500.0,0.00019178,2]
[357967767,1744627831994,-315.58937823,0.00019178,2]
[357967768,1744627832003,-500.0,0.00019178,2]
[357967769,1744627832012,-500.0,0.00019178,2]
[357967770,1744627832020,-500.0,0.00019178,2]
[357967771,1744627832029,-500.0,0.00019178,2]
[357967772,1744627832037,-500.0,0.00019178,2]
[357967773,1744627832047,-500.0,0.00019178,2]
[357967774,1744627832055,-500.0,0.00019178,2]
[357967775,1744627832064,-500.0,0.00019178,2]
[357967776,1744627832073,-500.0,0.00019178,2]
[357967777,1744627832083,-633.10040071,0.00019178,2]
[357967778,1744627832093,-500.0,0.00019178,2]
[357967779,1744627832102,-500.0,0.00019178,2]
[357967780,1744627832110,-500.0,0.00019178,2]
[357967781,1744627832118,-500.0,0.00019178,2]
[357967782,1744627832127,-500.0,0.00019178,2]
[357967784,1744627832137,-500.0,0.00019178,2]
[357967786,1744627832146,-500.0,0.00019178,2]
[357967788,1744627832156,-500.0,0.00019178,2]
[357967790,1744627832165,-521.73,0.00019178,2]
[357967792,1744627832175,-500.0,0.00019178,2]
[357967795,1744627832184,-512.17,0.00019178,2]
[357967796,1744627832193,-552.9,0.00019178,2]
[357967798,1744627832203,-554.77054452,0.00019178,2]
[357967800,1744627832212,-500.0,0.00019178,2]
[357967801,1744627832221,-500.0,0.00019178,2]
[357967802,1744627832229,-500.0,0.00019178,2]
[357967803,1744627832240,-807.56,0.00019178,2]
[357967804,1744627832248,-500.0,0.00019178,2]
[357967805,1744627832258,-500.0,0.00019178,2]
[357967806,1744627832268,-500.0,0.00019178,2]
[357967807,1744627832277,-5139.50994313,0.00019178,2]
[357967808,1744627832294,-16666.9999999,0.00019178,2]
[357967809,1744627832317,-3625.19005697,0.00019178,2]
[357967810,1744627832327,-500.0,0.00019178,2]
[357967811,1744627832336,-500.0,0.00019178,2]
[357967812,1744627832346,-500.0,0.00019178,2]
[357967813,1744627832355,-500.0,0.00019178,2]
[357967814,1744627832364,-500.0,0.00019178,2]
[357967815,1744627832374,-1343.83,0.00019178,2]
[357967816,1744627832383,-500.0,0.00019178,2]
[357967817,1744627832392,-253.44355,0.00019178,2]
[357967818,1744627832405,-59.65645,0.00019178,2]
[357967819,1744627832414,-500.0,0.00019178,2]
[357967820,1744627832424,-500.0,0.00019178,2]
[357967821,1744627832433,-500.0,0.00019178,2]
[357967822,1744627832443,-500.0,0.00019178,2]
[357967823,1744627832453,-500.0,0.00019178,2]
[357967824,1744627832462,-500.0,0.00019178,2]
[357967825,1744627832473,-519.28624382,0.00019178,2]
[357967826,1744627832485,-504.03,0.00019178,2]
[357967827,1744627832494,-500.0,0.00019178,2]
[357967828,1744627832504,-500.0,0.00019178,2]
[357967829,1744627832514,-3710.29,0.00019178,2]
[357967830,1744627832524,-507.01884421,0.00019178,2]
[357967831,1744627832534,-563.55,0.00019178,2]
[357967832,1744627832544,-500.0,0.00019178,2]
[357967833,1744627832553,-203.08,0.00019178,2]
[357967834,1744627832564,-542.14,0.00019178,2]
[357967835,1744627832573,-500.0,0.00019178,2]
[357967836,1744627832583,-196.37,0.00019178,2]
[357967837,1744627832593,-500.0,0.00019178,2]
[357967838,1744627832602,-325.11774081,0.00019178,2]
[357967839,1744627832616,-174.88225919,0.00019178,2]
[357967840,1744627832627,-145.79774081,0.00019178,2]
[357967844,1744627837931,-2989.7600019,0.00018815,2]
[357967845,1744627837982,-2475.5899981,0.00018815,2]
[357967846,1744627837994,-354.20225919,0.00019178,2]
[357967847,1744627838004,-500.0,0.00019178,2]
[357967848,1744627838014,-424.45,0.00019178,2]
[357967849,1744627838023,-500.0,0.00019178,2]
[357967850,1744627838033,-500.0,0.00019178,2]
[357967851,1744627838043,-440.40168611,0.00019178,2]
[357967852,1744627838052,-500.0,0.00019178,2]
[357967853,1744627838062,-500.0,0.00019178,2]
[357967854,1744627838072,-500.0,0.00019178,2]
[357967855,1744627838081,-1016.42,0.00019178,2]
[357967856,1744627838091,-500.0,0.00019178,2]
[357967857,1744627838101,-500.0,0.00019178,2]
[357967858,1744627838110,-500.0,0.00019178,2]
[357967859,1744627838119,-500.0,0.00019178,2]
[357967860,1744627838129,-500.0,0.00019178,2]
[357967861,1744627838140,-500.0,0.00019178,2]
[357967862,1744627838149,-500.0,0.00019178,2]
[357967863,1744627838158,-522.59,0.00019178,2]
[357967864,1744627838168,-500.0,0.00019178,2]
[357967865,1744627838177,-500.0,0.00019178,2]
[357967866,1744627838187,-500.0,0.00019178,2]
[357967867,1744627838196,-500.0,0.00019178,2]
[357967869,1744627838206,-179.39370182,0.00019178,2]
[357967871,1744627838215,-2000.0,0.00019178,2]
[357967873,1744627838224,-500.0,0.00019178,2]
[357967875,1744627838233,-500.0,0.00019178,2]
[357967876,1744627838244,-500.0,0.00019178,2]
[357967878,1744627838254,-632.76,0.00019178,2]
[357967879,1744627838264,-674.06,0.00019178,2]
[357967880,1744627838273,-500.0,0.00019178,2]
[357967881,1744627838283,-500.0,0.00019178,2]
[357967882,1744627838292,-500.0,0.00019178,2]
[357967883,1744627838302,-500.0,0.00019178,2]
[357967884,1744627838311,-500.0,0.00019178,2]
[357967885,1744627838321,-901.96,0.00019178,2]
[357967886,1744627838331,-500.0,0.00019178,2]
[357967887,1744627838340,-525.19032362,0.00019178,2]
[357967888,1744627838350,-500.0,0.00019178,2]
[357967890,1744627838359,-500.0,0.00019178,2]
[357967892,1744627838369,-574.83773874,0.00019178,2]
[357967893,1744627838380,-500.0,0.00019178,2]
[357967895,1744627838389,-500.0,0.00019178,2]
[357967898,1744627838399,-500.0,0.00019178,2]
[357967900,1744627838408,-500.0,0.00019178,2]
[357967901,1744627838418,-500.0,0.00019178,2]
[357967902,1744627838427,-1164.09,0.00019178,2]
[357967903,1744627838436,-500.0,0.00019178,2]
[357967904,1744627838446,-500.0,0.00019178,2]
[357967905,1744627838455,-500.0,0.00019178,2]
[357967906,1744627838464,-500.0,0.00019178,2]
[357967907,1744627838474,-514.98488608,0.00019178,2]
[357967908,1744627838483,-619.27083389,0.00019178,2]
[357967909,1744627838494,-500.0,0.00019178,2]
[357967910,1744627838504,-500.0,0.00019178,2]
[357967911,1744627838514,-500.0,0.00019178,2]
[357967912,1744627838523,-500.0,0.00019178,2]
[357967913,1744627838533,-500.0,0.00019178,2]
[357967914,1744627838542,-618.1,0.00019178,2]
[357967915,1744627838552,-500.0,0.00019178,2]
[357967916,1744627838562,-500.0,0.00019452,2]
[357967917,1744627838572,-500.0,0.00019452,2]
[357967918,1744627838592,-500.0,0.00019452,2]
[357967919,1744627838614,-262.58,0.00019452,2]
[357967920,1744627838635,-500.0,0.00019452,2]
[357967921,1744627838656,-500.0,0.00019452,2]
[357967922,1744627838676,-241.15,0.00019452,2]
[357967923,1744627838698,-500.0,0.00019452,2]
[357967924,1744627838719,-500.0,0.00019452,2]
[357967925,1744627838742,-500.0,0.00019452,2]
[357967926,1744627838763,-500.0,0.00019452,2]
[357967927,1744627838784,-519.62,0.00019452,2]
[357967928,1744627838805,-549.6,0.00019452,2]
[357967929,1744627838827,-500.0,0.00019452,2]
[357967930,1744627838850,-199.7853455,0.00019452,2]
[357967931,1744627838872,-500.0,0.00019452,2]
[357967932,1744627838888,-500.0,0.00019452,2]
[357967933,1744627838898,-500.0,0.00019452,2]
[357967934,1744627838908,-500.0,0.00019452,2]
[357967935,1744627838917,-500.0,0.00019452,2]
[357967936,1744627838927,-352.86,0.00019452,2]
[357967937,1744627838935,-500.0,0.00019452,2]
[357967938,1744627838944,-500.0,0.00019452,2]
[357967939,1744627838953,-500.0,0.00019452,2]
[357967940,1744627838961,-500.0,0.00019452,2]
[357967941,1744627838969,-540.6,0.00019452,2]
[357967942,1744627838978,-500.0,0.00019452,2]
[357967943,1744627838988,-500.0,0.00019452,2]
[357967944,1744627838998,-500.0,0.00019452,2]
[357967945,1744627839007,-500.0,0.00019452,2]
[357967946,1744627839016,-500.0,0.00019452,2]
[357967947,1744627839024,-500.0,0.00019452,2]
[357967948,1744627839033,-500.0,0.00019452,2]
[357967949,1744627839042,-500.0,0.00019452,2]
[357967950,1744627839051,-246.03,0.00019452,2]
[357967951,1744627839251,-500.0,0.00019452,2]
[357967952,1744627839277,-521.73,0.00019452,2]
[357967953,1744627839287,-500.0,0.00019452,2]
[357967954,1744627839297,-690.8905732,0.00019452,2]
[357967955,1744627839318,-116.6694268,0.00019452,2]
[357967956,1744627839327,-500.0,0.00019452,2]
[357967957,1744627839336,-500.0,0.00019452,2]
[357967958,1744627839345,-258.57074914,0.00019452,2]
[357967963,1744627839874,-343.6358242,0.00019178,2]
[357967964,1744627839884,-316.17925086,0.00019452,2]
[357967965,1744627839893,-20499.47413594,0.00019452,2]
[357967969,1744627841823,-0.00866584,0.00019452,2]
[357967970,1744627842026,-4932.21719822,0.00019452,2]
[357967971,1744627842036,-500.0,0.00019452,2]
[357967972,1744627842045,-500.0,0.00019452,2]
[357967973,1744627842054,-500.0,0.00019452,2]
[357967974,1744627842062,-500.0,0.00019452,2]
[357967975,1744627842071,-1343.83,0.00019452,2]
[357967976,1744627842079,-404.28,0.00019452,2]
[357967977,1744627842088,-500.0,0.00019452,2]
[357967978,1744627842098,-639.96,0.00019452,2]
[357967979,1744627842107,-500.0,0.00019452,2]
[357967980,1744627842116,-3710.29,0.00019452,2]
[357967981,1744627842124,-363.46,0.00019452,2]
[357967982,1744627842134,-500.0,0.00019452,2]
[357967983,1744627842142,-500.0,0.00019452,2]
[357967984,1744627842151,-1016.42,0.00019452,2]
[357967985,1744627842160,-500.0,0.00019452,2]
[357967986,1744627842169,-500.0,0.00019452,2]
[357967987,1744627842179,-500.0,0.00019452,2]
[357967988,1744627842188,-505.81,0.00019452,2]
[357967989,1744627842197,-500.0,0.00019452,2]
[357967990,1744627842206,-500.0,0.00019452,2]
[357967991,1744627842213,-500.0,0.00019452,2]
[357967992,1744627842224,-674.06,0.00019452,2]
[357967993,1744627842233,-500.0,0.00019452,2]
[357967994,1744627842244,-901.96,0.00019452,2]
[357967995,1744627842256,-500.0,0.00019452,2]
[357967996,1744627842265,-500.0,0.00019452,2]
[357967997,1744627842275,-286.03,0.00019452,2]
[357967998,1744627842284,-500.0,0.00019452,2]
[357967999,1744627842293,-263.41,0.00019452,2]
[357968000,1744627842303,-1164.09,0.00019452,2]
[357968001,1744627842312,-500.0,0.00019452,2]
[357968002,1744627842322,-500.0,0.00019452,2]
[357968003,1744627842332,-200.0,0.00019452,2]
[357968004,1744627842342,-500.0,0.00019452,2]
[357968005,1744627842351,-500.0,0.00019452,2]
[357968006,1744627842361,-500.0,0.00019452,2]
[357968007,1744627842371,-8499.19382951,0.000195,2]
[357968008,1744627842388,-1175.29286474,0.000195,2]
[357968009,1744627842401,-91182.821673,0.000195,2]
[357968010,1744627842411,-1000.0,0.000196,2]
[357968011,1744627842421,-246.6137,0.00019626,2]
[357968012,1744627842430,-370.48724767,0.00019643,2]
[357968013,1744627842439,-755.96606608,0.00019668,2]
[357968014,1744627842449,-386.42202915,0.00019702,2]
[357968015,1744627842459,-500.0,0.00019726,2]
[357968016,1744627842470,-500.0,0.00019726,2]
[357968017,1744627842480,-467.53266097,0.00019726,2]
[357968018,1744627842492,-542.89608322,0.00019726,2]
[357968019,1744627842502,-500.0,0.00019726,2]
[357968020,1744627842513,-304.46,0.00019726,2]
[357968021,1744627842523,-500.0,0.00019726,2]
[357968022,1744627842532,-500.0,0.00019726,2]
[357968023,1744627842542,-500.0,0.00019726,2]
[357968024,1744627842551,-500.0,0.00019726,2]
[357968025,1744627842562,-500.0,0.00019726,2]
[357968026,1744627842571,-378.97065004,0.00019726,2]
[357968027,1744627842581,-307.7,0.00019726,2]
[357968028,1744627842591,-442.53,0.00019726,2]
[357968029,1744627842600,-350.51,0.00019726,2]
[357968030,1744627842612,-427.08,0.00019726,2]
[357968031,1744627842624,-171.62,0.00019726,2]
[357968032,1744627842634,-500.0,0.00019726,2]
[357968033,1744627842644,-500.0,0.00019726,2]
[357968034,1744627842656,-537.81,0.00019726,2]
[357968035,1744627842665,-500.0,0.00019726,2]
[357968036,1744627842675,-500.0,0.00019726,2]
[357968037,1744627842687,-281.73,0.00019726,2]
[357968038,1744627842698,-500.0,0.00019726,2]
[357968039,1744627842708,-500.0,0.00019726,2]
[357968040,1744627842718,-500.0,0.00019726,2]
[357968042,1744627842728,-459.29611256,0.00019726,2]
[357968043,1744627842738,-500.0,0.00019726,2]
[357968044,1744627842749,-952.99,0.00019726,2]
[357968045,1744627842759,-722.38,0.00019726,2]
[357968047,1744627842768,-500.0,0.00019726,2]
[357968049,1744627842779,-405.99,0.00019726,2]
[357968051,1744627842789,-500.0,0.00019726,2]
[357968053,1744627842799,-500.0,0.00019726,2]
[357968055,1744627842809,-500.0,0.00019726,2]
[357968057,1744627842818,-500.0,0.00019726,2]
[357968059,1744627842828,-500.0,0.00019726,2]
[357968061,1744627842837,-500.0,0.00019726,2]
[357968063,1744627842847,-500.0,0.00019726,2]
[357968065,1744627842856,-401.2,0.00019726,2]
[357968067,1744627842866,-176.89006173,0.00019726,2]
[357968068,1744627842875,-549.6,0.00019726,2]
[357968069,1744627842885,-500.0,0.00019726,2]
[357968070,1744627842895,-500.0,0.00019726,2]
[357968071,1744627842904,-500.0,0.00019726,2]
[357968072,1744627842914,-500.0,0.00019726,2]
[357968073,1744627842924,-500.0,0.00019726,2]
[357968074,1744627842933,-306.40127736,0.00019726,2]
[357968075,1744627842943,-160.84,0.00019726,2]
[357968076,1744627842953,-500.0,0.00019726,2]
[357968077,1744627842962,-500.0,0.00019726,2]
[357968078,1744627842972,-537.89,0.00019726,2]
[357968079,1744627842982,-156.80770081,0.00019726,2]